[Event "*** SCC Grand Prix: Titled Tuesday Blitz"]
[Site "Chess.com"]
[Date "2020.09.08"]
[Round "10"]
[White "Susal_De_Silva"]
[Black "Kazan28"]
[Result "1-0"]
[WhiteElo "2518"]
[BlackElo "2273"]
[TimeControl "180+1"]
[EndTime "11:57:30 PDT"]
[Termination "Susal_De_Silva won by checkmate"]

1. e4 {[%clk 0:03:00.9]} 1... e5 {[%clk 0:02:58.5]} 2. Nf3 {[%clk 0:03:01]} 2...
Nc6 {[%clk 0:02:57.5]} 3. Bc4 {[%clk 0:03:00.7]} 3... Nf6 {[%clk 0:02:57.5]} 4.
d3 {[%clk 0:03:00.8]} 4... h6 {[%clk 0:02:52.4]} 5. O-O {[%clk 0:03:00.1]} 5...
d6 {[%clk 0:02:52.2]} 6. Re1 {[%clk 0:02:57.6]} 6... g5 {[%clk 0:02:52.5]} 7.
Nc3 {[%clk 0:02:54.7]} 7... Bg7 {[%clk 0:02:51.5]} 8. Ne2 {[%clk 0:02:52.8]}
8... Na5 {[%clk 0:02:49.6]} 9. Bb3 {[%clk 0:02:49.7]} 9... Nxb3 {[%clk
0:02:48.2]} 10. axb3 {[%clk 0:02:50.6]} 10... Nh5 {[%clk 0:02:46.2]} 11. Ng3
{[%clk 0:02:49.3]} 11... Nxg3 {[%clk 0:02:40]} 12. hxg3 {[%clk 0:02:48.2]} 12...
Bg4 {[%clk 0:02:37.8]} 13. Be3 {[%clk 0:02:43.8]} 13... Qf6 {[%clk 0:02:33.4]}
14. c3 {[%clk 0:02:13.7]} 14... O-O {[%clk 0:02:28.8]} 15. d4 {[%clk 0:02:11.7]}
15... a6 {[%clk 0:02:28]} 16. Qe2 {[%clk 0:02:01.7]} 16... Rfe8 {[%clk 0:02:24]}
17. Rad1 {[%clk 0:01:59.7]} 17... Qg6 {[%clk 0:02:16.5]} 18. Qd3 {[%clk
0:01:51.3]} 18... Qf6 {[%clk 0:02:12.6]} 19. Bc1 {[%clk 0:01:41.9]} 19... Qg6
{[%clk 0:02:05.7]} 20. Rd2 {[%clk 0:01:34]} 20... Bxf3 {[%clk 0:01:53.2]} 21.
gxf3 {[%clk 0:01:32.7]} 21... Re6 {[%clk 0:01:51.8]} 22. Kg2 {[%clk 0:01:27.9]}
22... Rae8 {[%clk 0:01:51.3]} 23. d5 {[%clk 0:01:26.1]} 23... R6e7 {[%clk
0:01:51.3]} 24. Rh1 {[%clk 0:01:24.5]} 24... Rd7 {[%clk 0:01:45.6]} 25. g4
{[%clk 0:01:24.1]} 25... a5 {[%clk 0:01:44.4]} 26. Rh5 {[%clk 0:01:24.3]} 26...
b6 {[%clk 0:01:42.3]} 27. Rd1 {[%clk 0:01:24.7]} 27... f6 {[%clk 0:01:37.7]} 28.
Qb5 {[%clk 0:01:19.9]} 28... Qf7 {[%clk 0:01:36.7]} 29. Be3 {[%clk 0:01:19.6]}
29... Ra8 {[%clk 0:01:35.5]} 30. Rc1 {[%clk 0:01:18.3]} 30... Qe8 {[%clk
0:01:33.2]} 31. Ra1 {[%clk 0:01:13.3]} 31... Rf7 {[%clk 0:01:32.5]} 32. Qc4
{[%clk 0:01:13.5]} 32... Qb8 {[%clk 0:01:28.9]} 33. b4 {[%clk 0:01:12]} 33...
axb4 {[%clk 0:01:28]} 34. Rxa8 {[%clk 0:01:12.1]} 34... Qxa8 {[%clk 0:01:28.9]}
35. Qxb4 {[%clk 0:01:12.7]} 35... Qa6 {[%clk 0:01:25.1]} 36. Rh1 {[%clk
0:01:10.5]} 36... Rf8 {[%clk 0:01:24.8]} 37. Rc1 {[%clk 0:00:57.2]} 37... Ra8
{[%clk 0:01:22.3]} 38. b3 {[%clk 0:00:57.1]} 38... Bf8 {[%clk 0:01:21.1]} 39. c4
{[%clk 0:00:46]} 39... Kf7 {[%clk 0:01:19.4]} 40. Qe1 {[%clk 0:00:46]} 40... Qa2
{[%clk 0:01:16.9]} 41. Rb1 {[%clk 0:00:40.8]} 41... Ra3 {[%clk 0:01:11.7]} 42.
Qh1 {[%clk 0:00:39.9]} 42... Rxb3 {[%clk 0:01:04.1]} 43. Qh5+ {[%clk 0:00:39.2]}
43... Kg7 {[%clk 0:00:57.5]} 44. Re1 {[%clk 0:00:26.8]} 44... Qa4 {[%clk
0:00:54.1]} 45. Rc1 {[%clk 0:00:20.1]} 45... Ra3 {[%clk 0:00:21.9]} 46. Rh1
{[%clk 0:00:17.8]} 46... Qd7 {[%clk 0:00:13.1]} 47. Qxh6+ {[%clk 0:00:16.7]}
47... Kf7 {[%clk 0:00:13.6]} 48. Qh7+ {[%clk 0:00:16.5]} 48... Ke8 {[%clk
0:00:14]} 49. Qg6+ {[%clk 0:00:16.4]} 49... Qf7 {[%clk 0:00:14]} 50. Qf5 {[%clk
0:00:16.3]} 50... Qd7 {[%clk 0:00:13.8]} 51. Qxf6 {[%clk 0:00:16.5]} 51... Qe7
{[%clk 0:00:13.1]} 52. Qg6+ {[%clk 0:00:16]} 52... Qf7 {[%clk 0:00:13.2]} 53.
Qxg5 {[%clk 0:00:16]} 53... Qe7 {[%clk 0:00:11.9]} 54. Qf5 {[%clk 0:00:14.3]}
54... Qf7 {[%clk 0:00:11.9]} 55. Qc8+ {[%clk 0:00:14.3]} 55... Ke7 {[%clk
0:00:11.7]} 56. Qxc7+ {[%clk 0:00:14.6]} 56... Kf6 {[%clk 0:00:12.6]} 57. Qd8+
{[%clk 0:00:13.8]} 57... Kg6 {[%clk 0:00:12.9]} 58. Qg5# {[%clk 0:00:11.7]} 1-0

[Event "*** SCC Grand Prix: Titled Tuesday Blitz"]
[Site "Chess.com"]
[Date "2020.09.08"]
[Round "10"]
[White "Parhamov"]
[Black "Guenplen"]
[Result "1-0"]
[WhiteElo "3009"]
[BlackElo "2903"]
[TimeControl "180+1"]
[EndTime "11:57:31 PDT"]
[Termination "Parhamov won on time"]

1. e4 {[%clk 0:03:00.9]} 1... c5 {[%clk 0:02:59.9]} 2. Nc3 {[%clk 0:03:01.4]}
2... Nc6 {[%clk 0:02:58.6]} 3. Bb5 {[%clk 0:03:02]} 3... Nd4 {[%clk 0:02:58.3]}
4. Nf3 {[%clk 0:03:02.4]} 4... e6 {[%clk 0:02:58.8]} 5. O-O {[%clk 0:03:00.3]}
5... a6 {[%clk 0:02:58.8]} 6. Bd3 {[%clk 0:03:00.4]} 6... Nxf3+ {[%clk
0:02:58.7]} 7. Qxf3 {[%clk 0:03:00]} 7... Bd6 {[%clk 0:02:59.6]} 8. Qh5 {[%clk
0:02:45.6]} 8... Qc7 {[%clk 0:02:48.1]} 9. a4 {[%clk 0:02:26.6]} 9... Nf6 {[%clk
0:02:30.2]} 10. Qh4 {[%clk 0:02:19.6]} 10... b6 {[%clk 0:01:57.4]} 11. f4 {[%clk
0:02:16.2]} 11... c4 {[%clk 0:01:56]} 12. Be2 {[%clk 0:02:16.2]} 12... Bb7
{[%clk 0:01:41]} 13. e5 {[%clk 0:01:33.7]} 13... Bc5+ {[%clk 0:01:40.8]} 14. Kh1
{[%clk 0:01:34.2]} 14... Ne4 {[%clk 0:01:41.3]} 15. Bf3 {[%clk 0:01:04.2]} 15...
Nxc3 {[%clk 0:01:35.3]} 16. dxc3 {[%clk 0:01:04.4]} 16... O-O {[%clk 0:01:27.1]}
17. Bxb7 {[%clk 0:00:59.1]} 17... Qxb7 {[%clk 0:01:28]} 18. f5 {[%clk
0:00:59.8]} 18... exf5 {[%clk 0:01:24.4]} 19. Rxf5 {[%clk 0:01:00.7]} 19... Rae8
{[%clk 0:00:55.9]} 20. Bg5 {[%clk 0:00:49.7]} 20... Re6 {[%clk 0:00:52.7]} 21.
Qxc4 {[%clk 0:00:46.4]} 21... h6 {[%clk 0:00:41.1]} 22. Bf4 {[%clk 0:00:42]}
22... Be7 {[%clk 0:00:34.7]} 23. Bg3 {[%clk 0:00:39.7]} 23... b5 {[%clk
0:00:30.5]} 24. axb5 {[%clk 0:00:39.4]} 24... axb5 {[%clk 0:00:31.4]} 25. Qd3
{[%clk 0:00:39.6]} 25... Rg6 {[%clk 0:00:20.2]} 26. Raf1 {[%clk 0:00:31.8]}
26... d6 {[%clk 0:00:16.1]} 27. exd6 {[%clk 0:00:16.7]} 27... Bxd6 {[%clk
0:00:17]} 28. Rxb5 {[%clk 0:00:17.3]} 28... Qa8 {[%clk 0:00:17.2]} 29. Rbf5
{[%clk 0:00:12.8]} 29... Bxg3 {[%clk 0:00:14.3]} 30. hxg3 {[%clk 0:00:13.7]}
30... Qb8 {[%clk 0:00:12.6]} 31. Rb5 {[%clk 0:00:05.9]} 31... Qc7 {[%clk
0:00:09.5]} 32. Rf4 {[%clk 0:00:06.3]} 32... Rd6 {[%clk 0:00:07.1]} 33. Qf3
{[%clk 0:00:06.3]} 33... Rfd8 {[%clk 0:00:06.1]} 34. Rb7 {[%clk 0:00:06.5]}
34... Rd1+ {[%clk 0:00:06]} 35. Kh2 {[%clk 0:00:06.5]} 35... Qc5 {[%clk
0:00:06.5]} 36. Rfxf7 {[%clk 0:00:04.4]} 36... Qg1+ {[%clk 0:00:06.3]} 37. Kh3
{[%clk 0:00:05]} 37... Qh1+ {[%clk 0:00:07.2]} 38. Kg4 {[%clk 0:00:05.5]} 38...
h5+ {[%clk 0:00:07.2]} 39. Kf4 {[%clk 0:00:03.4]} 39... Rf1 {[%clk 0:00:06]} 40.
Rxg7+ {[%clk 0:00:03.9]} 40... Kh8 {[%clk 0:00:06.4]} 41. Rh7+ {[%clk
0:00:04.2]} 41... Kg8 {[%clk 0:00:06.8]} 42. Rhg7+ {[%clk 0:00:04.5]} 42... Kh8
{[%clk 0:00:07.2]} 43. Rh7+ {[%clk 0:00:03.8]} 43... Kg8 {[%clk 0:00:07.6]} 44.
Rbg7+ {[%clk 0:00:04.7]} 44... Kf8 {[%clk 0:00:07.9]} 45. Ra7 {[%clk 0:00:03.7]}
45... Rxf3+ {[%clk 0:00:07.1]} 46. gxf3 {[%clk 0:00:04.6]} 46... Qc1+ {[%clk
0:00:07.2]} 47. Kf5 {[%clk 0:00:05.2]} 47... Qxc2+ {[%clk 0:00:06.4]} 48. Kf6
{[%clk 0:00:03]} 48... Rd6+ {[%clk 0:00:06.5]} 49. Ke5 {[%clk 0:00:03.5]} 49...
Qg6 {[%clk 0:00:02.4]} 50. Rh8+ {[%clk 0:00:03.3]} 1-0

[Event "*** SCC Grand Prix: Titled Tuesday Blitz"]
[Site "Chess.com"]
[Date "2020.09.08"]
[Round "10"]
[White "Tekushka"]
[Black "keepitcool9499"]
[Result "1/2-1/2"]
[WhiteElo "2429"]
[BlackElo "2633"]
[TimeControl "180+1"]
[EndTime "11:57:31 PDT"]
[Termination "Game drawn by repetition"]

1. e4 {[%clk 0:03:00.9]} 1... e6 {[%clk 0:03:00.9]} 2. d4 {[%clk 0:03:00.3]}
2... d5 {[%clk 0:02:50.2]} 3. Nc3 {[%clk 0:03:01.2]} 3... Nf6 {[%clk 0:02:49.9]}
4. e5 {[%clk 0:03:00.6]} 4... Nfd7 {[%clk 0:02:49.6]} 5. f4 {[%clk 0:03:01.2]}
5... c5 {[%clk 0:02:50.1]} 6. Nf3 {[%clk 0:03:01.8]} 6... Nc6 {[%clk 0:02:50.7]}
7. Be3 {[%clk 0:03:02.4]} 7... a6 {[%clk 0:02:51.3]} 8. Qd2 {[%clk 0:03:02.3]}
8... b5 {[%clk 0:02:51.9]} 9. Nd1 {[%clk 0:03:01.7]} 9... Qb6 {[%clk 0:02:52.4]}
10. c3 {[%clk 0:03:01.1]} 10... b4 {[%clk 0:02:52.9]} 11. Bd3 {[%clk 0:02:52.4]}
11... bxc3 {[%clk 0:02:50.7]} 12. bxc3 {[%clk 0:02:44.8]} 12... cxd4 {[%clk
0:02:51.6]} 13. Nxd4 {[%clk 0:02:29.9]} 13... Nxd4 {[%clk 0:02:30.8]} 14. Bxd4
{[%clk 0:02:17.3]} 14... Bc5 {[%clk 0:02:30.6]} 15. Qe3 {[%clk 0:02:06.5]} 15...
Bxd4 {[%clk 0:02:29.4]} 16. cxd4 {[%clk 0:02:06.5]} 16... Qb4+ {[%clk
0:02:27.5]} 17. Kf2 {[%clk 0:01:55.6]} 17... O-O {[%clk 0:02:24.9]} 18. Nc3
{[%clk 0:01:42.1]} 18... f5 {[%clk 0:02:20.9]} 19. Ne2 {[%clk 0:01:31.6]} 19...
Nb6 {[%clk 0:02:07.2]} 20. Rab1 {[%clk 0:01:30.8]} 20... Qa5 {[%clk 0:01:33]}
21. Rhc1 {[%clk 0:01:30.6]} 21... Ra7 {[%clk 0:01:29.6]} 22. Rc5 {[%clk
0:01:27.8]} 22... Qxa2 {[%clk 0:01:15.9]} 23. Rxb6 {[%clk 0:01:27.6]} 23... Bd7
{[%clk 0:01:13.5]} 24. Qc1 {[%clk 0:01:17.3]} 24... h6 {[%clk 0:00:48.9]} 25.
Rc7 {[%clk 0:01:07.5]} 25... Rfa8 {[%clk 0:00:43.5]} 26. Rxa7 {[%clk 0:00:51.7]}
26... Rxa7 {[%clk 0:00:44.4]} 27. Qc5 {[%clk 0:00:51.9]} 27... Kh7 {[%clk
0:00:37.6]} 28. Rb8 {[%clk 0:00:51]} 28... Bb5 {[%clk 0:00:34.8]} 29. Bxb5
{[%clk 0:00:33.4]} 29... axb5 {[%clk 0:00:35.7]} 30. Qxb5 {[%clk 0:00:32.5]}
30... Qc2 {[%clk 0:00:25.2]} 31. Rb7 {[%clk 0:00:30.9]} 31... Ra2 {[%clk
0:00:20.6]} 32. Re7 {[%clk 0:00:28.1]} 32... Qe4 {[%clk 0:00:17.4]} 33. g3
{[%clk 0:00:21.5]} 33... Qxd4+ {[%clk 0:00:15.2]} 34. Kf1 {[%clk 0:00:18.3]}
34... Qd1+ {[%clk 0:00:13.4]} 35. Kf2 {[%clk 0:00:18]} 35... Qd4+ {[%clk
0:00:13.1]} 36. Kf1 {[%clk 0:00:18.2]} 36... Qd1+ {[%clk 0:00:11.5]} 37. Kf2
{[%clk 0:00:17.8]} 37... Qh1 {[%clk 0:00:06.2]} 38. Rxg7+ {[%clk 0:00:11.3]}
38... Kxg7 {[%clk 0:00:07.1]} 39. Qd7+ {[%clk 0:00:11.5]} 39... Kf8 {[%clk
0:00:05.6]} 40. Qd6+ {[%clk 0:00:11]} 40... Kf7 {[%clk 0:00:05]} 41. Qd7+ {[%clk
0:00:11.1]} 41... Kf8 {[%clk 0:00:03.8]} 42. Qd8+ {[%clk 0:00:11.7]} 42... Kf7
{[%clk 0:00:02.2]} 43. Qf6+ {[%clk 0:00:12.3]} 43... Kg8 {[%clk 0:00:01.5]} 44.
Qxe6+ {[%clk 0:00:12.5]} 44... Kh7 {[%clk 0:00:02.2]} 45. Qf7+ {[%clk
0:00:12.4]} 45... Kh8 {[%clk 0:00:02.9]} 46. Qf6+ {[%clk 0:00:12.3]} 46... Kh7
{[%clk 0:00:03.2]} 47. Qxf5+ {[%clk 0:00:12.1]} 47... Kh8 {[%clk 0:00:03.1]} 48.
Qf6+ {[%clk 0:00:12]} 48... Kh7 {[%clk 0:00:03.3]} 49. Qf7+ {[%clk 0:00:12.2]}
49... Kh8 {[%clk 0:00:03.7]} 50. Qe8+ {[%clk 0:00:09.2]} 50... Kh7 {[%clk
0:00:03.9]} 51. Qd7+ {[%clk 0:00:07.8]} 51... Kh8 {[%clk 0:00:04.5]} 52. Qc8+
{[%clk 0:00:07.5]} 52... Kh7 {[%clk 0:00:04.8]} 53. Qb7+ {[%clk 0:00:07.1]}
53... Kh8 {[%clk 0:00:05.3]} 54. Qc8+ {[%clk 0:00:07.2]} 54... Kh7 {[%clk
0:00:05.8]} 55. Qf5+ {[%clk 0:00:06.8]} 55... Kh8 {[%clk 0:00:05.9]} 56. Qf6+
{[%clk 0:00:06.3]} 56... Kh7 {[%clk 0:00:06.2]} 57. Qf7+ {[%clk 0:00:06.7]}
57... Kh8 {[%clk 0:00:06.6]} 58. Qf8+ {[%clk 0:00:06.9]} 58... Kh7 {[%clk
0:00:07]} 59. Qf5+ {[%clk 0:00:06.8]} 1/2-1/2

[Event "*** SCC Grand Prix: Titled Tuesday Blitz"]
[Site "Chess.com"]
[Date "2020.09.08"]
[Round "10"]
[White "Hasangatin_Ramil"]
[Black "Snegokhod"]
[Result "0-1"]
[WhiteElo "2571"]
[BlackElo "2416"]
[TimeControl "180+1"]
[EndTime "11:57:33 PDT"]
[Termination "Snegokhod won on time"]

1. e4 {[%clk 0:03:00.9]} 1... c5 {[%clk 0:02:57]} 2. Nf3 {[%clk 0:03:01.2]} 2...
e6 {[%clk 0:02:56.5]} 3. g3 {[%clk 0:03:01]} 3... Nc6 {[%clk 0:02:55.1]} 4. Bg2
{[%clk 0:03:01.3]} 4... d6 {[%clk 0:02:54.1]} 5. O-O {[%clk 0:03:01.2]} 5... Nf6
{[%clk 0:02:54]} 6. Re1 {[%clk 0:03:01.7]} 6... Be7 {[%clk 0:02:53.9]} 7. c3
{[%clk 0:03:02.3]} 7... O-O {[%clk 0:02:51.5]} 8. d4 {[%clk 0:03:02.7]} 8...
cxd4 {[%clk 0:02:50.6]} 9. cxd4 {[%clk 0:03:03.6]} 9... d5 {[%clk 0:02:47.6]}
10. exd5 {[%clk 0:03:04.5]} 10... exd5 {[%clk 0:02:40.1]} 11. Nc3 {[%clk
0:03:04.9]} 11... Bg4 {[%clk 0:02:33.2]} 12. h3 {[%clk 0:03:03.8]} 12... Bf5
{[%clk 0:02:29]} 13. Ne5 {[%clk 0:03:03]} 13... Rc8 {[%clk 0:02:23.4]} 14. Bg5
{[%clk 0:02:50.5]} 14... Be6 {[%clk 0:02:00.1]} 15. Qd2 {[%clk 0:02:40.3]} 15...
h6 {[%clk 0:01:56.3]} 16. Bf4 {[%clk 0:02:34.2]} 16... Bb4 {[%clk 0:01:35.5]}
17. Re3 {[%clk 0:02:25.3]} 17... Ne4 {[%clk 0:01:31.3]} 18. Qd3 {[%clk
0:01:58.4]} 18... Nxe5 {[%clk 0:01:24.7]} 19. dxe5 {[%clk 0:01:48.8]} 19... Nxc3
{[%clk 0:01:21.7]} 20. bxc3 {[%clk 0:01:48.3]} 20... Rxc3 {[%clk 0:01:19.8]} 21.
Qb1 {[%clk 0:01:14.7]} 21... Qa5 {[%clk 0:01:11.4]} 22. a3 {[%clk 0:01:11]}
22... Bc5 {[%clk 0:01:04.9]} 23. Rxc3 {[%clk 0:01:08.5]} 23... Qxc3 {[%clk
0:01:05]} 24. Ra2 {[%clk 0:00:55.9]} 24... g5 {[%clk 0:00:55.2]} 25. Rc2 {[%clk
0:00:49]} 25... Qxa3 {[%clk 0:00:52.6]} 26. Bc1 {[%clk 0:00:48.4]} 26... Qb4
{[%clk 0:00:49.1]} 27. Qa1 {[%clk 0:00:39.5]} 27... Bd4 {[%clk 0:00:38.6]} 28.
Bb2 {[%clk 0:00:36.2]} 28... Bb6 {[%clk 0:00:30.6]} 29. Ba3 {[%clk 0:00:33.6]}
29... Qb3 {[%clk 0:00:27]} 30. Rb2 {[%clk 0:00:33.1]} 30... Qc3 {[%clk
0:00:17.5]} 31. Bxf8 {[%clk 0:00:31.6]} 31... Kxf8 {[%clk 0:00:17.6]} 32. Qb1
{[%clk 0:00:27.7]} 32... Qxe5 {[%clk 0:00:17]} 33. Rd2 {[%clk 0:00:20.7]} 33...
Qc3 {[%clk 0:00:12.5]} 34. Rd3 {[%clk 0:00:19.7]} 34... Qc5 {[%clk 0:00:11.4]}
35. Qb2 {[%clk 0:00:17.3]} 35... Ke7 {[%clk 0:00:10.4]} 36. Rc3 {[%clk
0:00:17.6]} 36... Qd4 {[%clk 0:00:09.6]} 37. Rc7+ {[%clk 0:00:17.6]} 37... Kd6
{[%clk 0:00:09.4]} 38. Qxd4 {[%clk 0:00:17.7]} 38... Bxd4 {[%clk 0:00:09.8]} 39.
Rxb7 {[%clk 0:00:18.3]} 39... Bb6 {[%clk 0:00:09.2]} 40. Rb8 {[%clk 0:00:15.9]}
40... Kc6 {[%clk 0:00:08.2]} 41. Kf1 {[%clk 0:00:10.2]} 41... a6 {[%clk
0:00:07.6]} 42. Ke2 {[%clk 0:00:09.7]} 42... a5 {[%clk 0:00:08.2]} 43. f4 {[%clk
0:00:08.4]} 43... gxf4 {[%clk 0:00:07.4]} 44. gxf4 {[%clk 0:00:09.3]} 44... a4
{[%clk 0:00:07.5]} 45. Kd3 {[%clk 0:00:09.7]} 45... a3 {[%clk 0:00:05.3]} 46.
Ra8 {[%clk 0:00:09.3]} 46... Bc5 {[%clk 0:00:05.3]} 47. Kc3 {[%clk 0:00:08.5]}
47... Bd6 {[%clk 0:00:03.8]} 48. Ra6+ {[%clk 0:00:07.4]} 48... Kc7 {[%clk
0:00:03.4]} 49. Kd4 {[%clk 0:00:06.1]} 49... Bxf4 {[%clk 0:00:03.3]} 50. Rxa3
{[%clk 0:00:04.5]} 50... Kd6 {[%clk 0:00:03.7]} 51. Ra6+ {[%clk 0:00:02.6]}
51... Ke7 {[%clk 0:00:04]} 52. h4 {[%clk 0:00:02.1]} 52... Bg3 {[%clk
0:00:03.9]} 53. h5 {[%clk 0:00:01.9]} 53... Bf2+ {[%clk 0:00:03.9]} 0-1

[Event "*** SCC Grand Prix: Titled Tuesday Blitz"]
[Site "Chess.com"]
[Date "2020.09.08"]
[Round "10"]
[White "peixe64"]
[Black "chesslh19"]
[Result "0-1"]
[WhiteElo "2323"]
[BlackElo "2223"]
[TimeControl "180+1"]
[EndTime "11:57:34 PDT"]
[Termination "chesslh19 won by checkmate"]

1. e4 {[%clk 0:03:00.9]} 1... e5 {[%clk 0:02:58.3]} 2. Nf3 {[%clk 0:03:01.3]}
2... Nf6 {[%clk 0:02:57.4]} 3. Nxe5 {[%clk 0:02:59.7]} 3... d6 {[%clk
0:02:56.9]} 4. Nf3 {[%clk 0:02:59.7]} 4... Nxe4 {[%clk 0:02:53.9]} 5. Nc3 {[%clk
0:02:59.9]} 5... Nxc3 {[%clk 0:02:53.8]} 6. dxc3 {[%clk 0:03:00.8]} 6... Be7
{[%clk 0:02:54.3]} 7. Be3 {[%clk 0:02:59]} 7... Nc6 {[%clk 0:02:52.7]} 8. Qd2
{[%clk 0:02:59.5]} 8... Be6 {[%clk 0:02:50.3]} 9. Bd3 {[%clk 0:02:53.5]} 9...
Bf6 {[%clk 0:02:38]} 10. a3 {[%clk 0:02:39.2]} 10... Qd7 {[%clk 0:02:29.4]} 11.
O-O-O {[%clk 0:02:35.1]} 11... O-O-O {[%clk 0:02:28.1]} 12. h3 {[%clk
0:02:23.2]} 12... a6 {[%clk 0:02:26]} 13. g4 {[%clk 0:02:17.9]} 13... h6 {[%clk
0:02:26.1]} 14. Rhg1 {[%clk 0:02:15.2]} 14... Kb8 {[%clk 0:02:24.2]} 15. Kb1
{[%clk 0:02:04.7]} 15... Ne5 {[%clk 0:02:19.8]} 16. Nxe5 {[%clk 0:01:57.4]}
16... dxe5 {[%clk 0:02:05.6]} 17. Qe2 {[%clk 0:01:52.4]} 17... Qc6 {[%clk
0:01:50.2]} 18. f3 {[%clk 0:01:35.9]} 18... Rhe8 {[%clk 0:01:23.7]} 19. Be4
{[%clk 0:01:31.7]} 19... Qc4 {[%clk 0:01:19.9]} 20. Qxc4 {[%clk 0:01:31.3]}
20... Bxc4 {[%clk 0:01:19.9]} 21. b3 {[%clk 0:01:20.8]} 21... Be6 {[%clk
0:01:10.6]} 22. c4 {[%clk 0:01:14.1]} 22... Bg5 {[%clk 0:01:05.6]} 23. Bf2
{[%clk 0:01:09.5]} 23... Rxd1+ {[%clk 0:00:58.8]} 24. Rxd1 {[%clk 0:01:08.7]}
24... Rd8 {[%clk 0:00:59.7]} 25. Rxd8+ {[%clk 0:01:06.1]} 25... Bxd8 {[%clk
0:01:00.6]} 26. c5 {[%clk 0:01:05.6]} 26... c6 {[%clk 0:00:57.9]} 27. h4 {[%clk
0:00:57.8]} 27... g6 {[%clk 0:00:50.5]} 28. Bg3 {[%clk 0:00:54.4]} 28... Bc7
{[%clk 0:00:46]} 29. g5 {[%clk 0:00:47.6]} 29... hxg5 {[%clk 0:00:42.7]} 30.
hxg5 {[%clk 0:00:48.5]} 30... Kc8 {[%clk 0:00:38.2]} 31. Kc1 {[%clk 0:00:47.1]}
31... Kd7 {[%clk 0:00:36.8]} 32. Kd2 {[%clk 0:00:47.6]} 32... Bd8 {[%clk
0:00:19.1]} 33. Bxe5 {[%clk 0:00:43.4]} 33... Bxg5+ {[%clk 0:00:18.9]} 34. Kd3
{[%clk 0:00:41.1]} 34... Be7 {[%clk 0:00:18.3]} 35. b4 {[%clk 0:00:39.5]} 35...
f5 {[%clk 0:00:18.2]} 36. Ke3 {[%clk 0:00:20.6]} 36... fxe4 {[%clk 0:00:17.9]}
37. fxe4 {[%clk 0:00:21]} 37... g5 {[%clk 0:00:17.8]} 38. Kf3 {[%clk 0:00:21.2]}
38... g4+ {[%clk 0:00:17.9]} 39. Kg3 {[%clk 0:00:20.9]} 39... Ke8 {[%clk
0:00:18]} 40. Kf4 {[%clk 0:00:20.5]} 40... Kf7 {[%clk 0:00:18.2]} 41. Bb8 {[%clk
0:00:19.8]} 41... Kg6 {[%clk 0:00:17.3]} 42. a4 {[%clk 0:00:20.3]} 42... Kh5
{[%clk 0:00:14.7]} 43. e5 {[%clk 0:00:14.6]} 43... Bg5+ {[%clk 0:00:14]} 44. Kg3
{[%clk 0:00:14.2]} 44... Bd2 {[%clk 0:00:13.1]} 45. b5 {[%clk 0:00:09.6]} 45...
axb5 {[%clk 0:00:12.6]} 46. axb5 {[%clk 0:00:10.5]} 46... cxb5 {[%clk
0:00:13.1]} 47. Bd6 {[%clk 0:00:10.2]} 47... Be1+ {[%clk 0:00:12.7]} 48. Kg2
{[%clk 0:00:09.8]} 48... g3 {[%clk 0:00:12.4]} 49. Kf1 {[%clk 0:00:10.3]} 49...
Bf2 {[%clk 0:00:11.9]} 50. Be7 {[%clk 0:00:08.9]} 50... Bc4+ {[%clk 0:00:11.6]}
51. Kg2 {[%clk 0:00:09]} 51... Kg4 {[%clk 0:00:12]} 52. Bd6 {[%clk 0:00:08.2]}
52... Bd5+ {[%clk 0:00:12.1]} 53. Kf1 {[%clk 0:00:08.6]} 53... Bd4 {[%clk
0:00:11.8]} 54. e6 {[%clk 0:00:08.3]} 54... g2+ {[%clk 0:00:11.8]} 55. Ke2
{[%clk 0:00:07.6]} 55... Bxe6 {[%clk 0:00:11]} 56. c6 {[%clk 0:00:05.5]} 56...
bxc6 {[%clk 0:00:10.1]} 57. Kd3 {[%clk 0:00:04.1]} 57... g1=Q {[%clk 0:00:10.2]}
58. Bb4 {[%clk 0:00:02.8]} 58... Qe3# {[%clk 0:00:10.1]} 0-1